Workbook

Sheet Rent Roll
B2: Unit | C2: Tenant | D2: Rent | E2: Pro-Forma Rent | F2: Notes | G2: Lease From | H2: Lease To
B3: Main Road (333)-N - 333 Main Road Tiverton, RI 02878
B4: Unit 1 | E4: 2100 | F4: Unit under renovation - will be finished in ~2 months
B5: Unit 2 | C5: Joshua M. Cokk | D5: 1545 | E5: 1545 | G5: 2024-07-01 | H5: 2025-06-30
B6: Unit 3 | C6: Samantha M. Moreira | D6: 1545 | E6: 1545 | G6: 2025-05-01 | H6: 2026-04-30
B7: Unit 4 | C7: Paula A. Sando | D7: 1495 | E7: 1495 | G7: 2025-01-01 | H7: 2025-12-31
B8: Unit 5 | E8: 1545 | F8: Units will be listed in ~1 week
B9: Unit 6 | E9: 1545 | F9: Units will be listed in ~1 week
B10: Unit 7 | C10: Samantha T. Santos | D10: 1495 | E10: 1495 | G10: 2025-02-15 | H10: 2026-01-31
B11: Unit 8 | C11: Matthew M. Stellingwerf | D11: 1585 | E11: 1585 | G11: 2024-07-01 | H11: 2025-06-30
B12: Unit 9 | E12: 1300 | F12: Zoned as an 8 unit but there are 10 units
B13: Unit 10 | E13: 1300 | F13: Zoned as an 8 unit but there are 10 units
B14: 8 Units | D14: =+SUM(D4:D13) -> 7665 | E14: =+SUM(E4:E13) -> 15455
B15: Smith Street (1960)-N - 1960 Smith Street North Providence, RI 02911
B16: Unit 1 | C16: Maleah Irene Euresti | D16: 2050 | E16: 2050 | G16: 2023-11-01 | H16: 2024-10-31
B17: Unit 2 | C17: Ileam Monterroso | D17: 1675 | E17: 1675 | G17: 2023-04-01 | H17: 2026-03-31
B18: Unit 3 | C18: Alexus Del Core | D18: 1350 | E18: 1350 | G18: 2023-12-01 | H18: 2024-11-30
B19: Unit 4 | C19: Kaitlyn Pitts | D19: 1500 | E19: 1500 | G19: 2023-04-01 | H19: 2024-03-31
B20: Unit 5 | C20: Cheyenne A. Ervin | D20: 1525 | E20: 1525 | G20: 2024-09-01 | H20: 2025-08-31
B21: 5 Units | D21: =+SUM(D16:D20) -> 8100 | E21: =+SUM(E16:E20) -> 8100
B22: Victor Street (95)-N - 95 Victor Street Woonsocket, RI 02895
B23: Unit 1 | C23: Jennifer Locke | D23: 1350 | E23: 1350 | G23: 2023-09-01 | H23: 2024-08-31
B24: Unit 2 | C24: Felix Gonzalez | D24: 1350 | E24: 1350 | G24: 2024-05-26
B25: Unit 3 | C25: Hannah E. Prairie | D25: 1725 | E25: 1725 | G25: 2024-06-01 | H25: 2025-05-31
B26: Unit 4 | C26: Siobhan Harrington | D26: 1875 | E26: 1875 | G26: 2023-07-01
B27: Unit 5 | C27: Josh Beatty | D27: 1550 | E27: 1550 | G27: 2023-09-01
B28: Unit 6 | C28: Luke Thomas Holden | D28: 1735 | E28: 1735 | G28: 2023-04-01
B29: Unit 7 | C29: Zaida Hernandez | D29: 1560 | E29: 1560 | G29: 2023-10-09
B30: 7 Units | D30: =+SUM(D23:D29) -> 11145 | E30: =+SUM(E23:E29) -> 11145
B31: Winsor Street (106-108)-N - 106-108 Winsor Street New Bedford, MA 02744
B32: 106 Winsor Unit 1 | C32: Kiana Eileen Fernandez | D32: 1410 | E32: 1410 | G32: 2023-03-09
B33: 106 Winsor unit 2 | C33: Nathan C. Oliveira | D33: 1195 | E33: 1195 | G33: 2024-04-01 | H33: 2025-03-31
B34: 106 Winsor Unit 3 | C34: Nellyanne Medina Santiago | D34: 1445 | E34: 1445 | G34: 2025-02-15 | H34: 2026-01-31
B35: 108 Winsor Unit 1 | C35: Jamaal Smith | D35: 1475 | E35: 1475 | G35: 2023-06-16
B36: 108 Winsor Unit 2 | C36: Brian Acevedo | D36: 1500 | E36: 1500 | G36: 2023-08-15 | H36: 2024-08-14
B37: 108 Winsor Unit 3 | D37: 1495 | E37: 1495 | G37: 2025-05-16 | H37: 2026-04-20
B38: 6 Units | D38: =+SUM(D32:D37) -> 8520 | E38: =+SUM(E32:E37) -> 8520
B40: Total | D40: =+D38+D30+D21+D14 -> 35430 | E40: =+E38+E30+E21+E14 -> 43220

Sheet TTM P&L through Apr 25
A1: TTM - 5/24 through 4/25
A2: Account Name | B2: Main Road (333)-N | C2: Smith Street (1960)-N | D2: Victor Street (95)-N | E2: Winsor Street (106-108)-N | F2: Total
A3: Operating Income & Expense
A4: Income
A5: RENTS
A6: Rent Income | B6: 64437.5 | C6: 65431 | D6: 126825.94 | E6: 95437.5 | F6: =+SUM(B6:E6) -> 352131.94
A7: Section 8 Rent | B7: 0 | C7: 30386 | D7: 0 | E7: 0 | F7: =+SUM(B7:E7) -> 30386
A8: Total RENTS | B8: =+SUM(B6:B7) -> 64437.5 | C8: 95817 | D8: 126825.94 | E8: 95437.5 | F8: 382517.94
A9: FEES
A10: Resident Benefit Package | B10: 0 | C10: 120 | D10: 80 | E10: 0 | F10: =+SUM(B10:E10) -> 200
A11: Screening Fee | B11: 0 | C11: 0 | D11: 0 | E11: 60 | F11: =+SUM(B11:E11) -> 60
A12: Late Fee | B12: 0 | C12: 0 | D12: -100 | E12: 0 | F12: =+SUM(B12:E12) -> -100
A13: Total FEES | B13: 0 | C13: 120 | D13: -20 | E13: 60 | F13: 180
A14: Laundry Income | B14: 34.5 | C14: 372.75 | D14: 657.75 | E14: 0 | F14: =+SUM(B14:E14) -> 1065
A15: Total Operating Income | B15: =+B8+B13+B14 -> 64472 | C15: 96309.75 | D15: 127463.69 | E15: 95497.5 | F15: 383762.94
A16: Expense
A17: INSURANCE
A18: Property Insurance | B18: 6676.39 | C18: 5291.23 | D18: 6721.63 | E18: 5794.11 | F18: =+SUM(B18:E18) -> 24483.36
A19: Total INSURANCE | B19: =+B18 -> 6676.39 | C19: 5291.23 | D19: 6721.63 | E19: 5794.11 | F19: 24483.36
A20: LEGAL AND OTHER PROFESSIONAL FEES
A21: Legal & Other Professional Services | B21: 449.46 | C21: 449.37 | D21: 3474.46 | E21: 449.46 | F21: =+SUM(B21:E21) -> 4822.75
A22: Total LEGAL AND OTHER PROFESSIONAL FEES | B22: =+B21 -> 449.46 | C22: 449.37 | D22: 3474.46 | E22: 449.46 | F22: 4822.75
A23: MANAGEMENT FEES
A24: Management fees | B24: 4188.5 | C24: 6228.2 | D24: 8243.7 | E24: 6203.5 | F24: =+SUM(B24:E24) -> 24863.9
A25: Total MANAGEMENT FEES | B25: =+B24 -> 4188.5 | C25: 6228.2 | D25: 8243.7 | E25: 6203.5 | F25: 24863.9
A26: Maintenance
A27: Snow Removal | B27: 800 | C27: 1365 | D27: 555 | E27: 600 | F27: =+SUM(B27:E27) -> 3320
A28: Vendor Maintenance | B28: 1907.14 | C28: 4326.22 | D28: 3262.5 | E28: 2733.81 | F28: =+SUM(B28:E28) -> 12229.67
A29: Lyon Team - Repair | B29: 3073.57 | C29: 1810.1 | D29: 2107 | E29: 1644.98 | F29: =+SUM(B29:E29) -> 8635.65
A30: Appliance Repair/Replace | B30: 0 | C30: 825.89 | D30: 2066.35 | E30: 109 | F30: =+SUM(B30:E30) -> 3001.24
A31: Lyon Team - Cleaning | B31: 750 | C31: 250 | D31: 625 | E31: 300 | F31: =+SUM(B31:E31) -> 1925
A32: Lyon Team - Vendor Assist | B32: 383.5 | C32: 118 | D32: 286 | E32: 383.5 | F32: =+SUM(B32:E32) -> 1171
A33: Total Maintenance | B33: =+SUM(B27:B32) -> 6914.21 | C33: 8695.21 | D33: 8901.85 | E33: 5771.29 | F33: 30282.56
A34: TAXES
A35: Property Tax | B35: 8735 | C35: 8971.04 | D35: 12780.4 | E35: 5861.23 | F35: =+SUM(B35:E35) -> 36347.67
A36: Total TAXES | B36: =+B35 -> 8735 | C36: 8971.04 | D36: 12780.4 | E36: 5861.23 | F36: 36347.67
A37: UTILITIES
A38: Gas | B38: 4792.6 | C38: 0 | D38: 0 | E38: 0 | F38: =+SUM(B38:E38) -> 4792.6
A39: Water | B39: 939.48 | C39: 3327 | D39: 1597.18 | E39: 2437.25 | F39: =+SUM(B39:E39) -> 8300.91
A40: Sewer | B40: 0 | C40: 2602 | D40: 2211.93 | E40: 0 | F40: =+SUM(B40:E40) -> 4813.93
A41: Waste Removal | B41: 3019.92 | C41: 0 | D41: 2020.77 | E41: 3343.23 | F41: =+SUM(B41:E41) -> 8383.92
A42: Electricity | B42: 475.74 | C42: 0 | D42: 926.34 | E42: 0 | F42: =+SUM(B42:E42) -> 1402.08
A43: Total UTILITIES | B43: =+SUM(B38:B42) -> 9227.74 | C43: 5929 | D43: 6756.22 | E43: 5780.48 | F43: 27693.44
A44: Fire Alarm Inspections | B44: 1792.83 | C44: 414.09 | D44: 343 | E44: 1946.1 | F44: =+SUM(B44:E44) -> 4496.02
A45: Operating - Inspection/Fire Alarm | B45: 0 | C45: 0 | D45: 0 | E45: 0 | F45: =+SUM(B45:E45) -> 0
A46: Total Operating Expense | B46: =+B19+B22+B25+B33+B36+SUM(B43:B45) -> 37984.13 | C46: 35978.14 | D46: 47221.26 | E46: 31806.17 | F46: 152989.7
A48: NOI - Net Operating Income | B48: =+B8-B46 -> 26453.37 | C48: 59838.86 | D48: 79604.68 | E48: 63631.33 | F48: 229528.24
A49: % of revenue | B49: =+B48/B8 -> 0.4105275655 | C49: 0.6245119342 | D49: 0.6276687561 | E49: 0.6667329928 | F49: 0.6000456867

Sheet Pro Forma P&L
B2: Pro Forma Annual P&L
C5: 95 Victor | D5: 106 Winsor | E5: 333 Main | F5: 1960 Smith
B6: Pro Forma Rent | C6: =+'Rent Roll'!E30*12 -> 133740 | D6: =+'Rent Roll'!E38*12 -> 102240 | E6: =+'Rent Roll'!E14*12 -> 185460 | F6: =+'Rent Roll'!E21*12 -> 97200
B7: Repairs & Maintenance | C7: =-0.075*C6 -> -10030.5 | D7: =-0.075*D6 -> -7668 | E7: =-0.075*E6 -> -13909.5 | F7: =-0.075*F6 -> -7290
B8: Management Fees | C8: =-0.065*C6 -> -8693.1 | D8: =-0.065*D6 -> -6645.6 | E8: =-0.065*E6 -> -12054.9 | F8: =-0.065*F6 -> -6318
B9: Insurance | C9: -6721.63 | D9: -5794.11 | E9: -6676.39 | F9: -5291.23
B10: Utilities | C10: -6756.22 | D10: -5780.48 | E10: -9227.74 | F10: -5929
B11: Taxes | C11: -12780.4 | D11: -5861.23 | E11: -8735 | F11: -8971.04
B12: NOI | C12: =+SUM(C6:C11) -> 88758.15 | D12: =+SUM(D6:D11) -> 70490.58 | E12: =+SUM(E6:E11) -> 134856.47 | F12: =+SUM(F6:F11) -> 63400.73
B13: % of Revenue | C13: =+C12/C6 -> 0.663661956 | D13: 0.6894618545 | E13: 0.7271458536 | F13: 0.6522708848
